[Event "*** Titled Tuesday Blitz"]
[Site "Chess.com"]
[Date "2020.03.03"]
[Round "5"]
[White "deBaller"]
[Black "Fuerza777"]
[Result "1-0"]
[WhiteElo "2358"]
[BlackElo "2201"]
[TimeControl "180+1"]
[EndTime "13:52:09 PST"]
[Termination "deBaller won by resignation"]

1. e4 {[%clk 0:03:00.9]} 1... e5 {[%clk 0:02:59.5]} 2. Nf3 {[%clk 0:03:00.4]}
2... Nc6 {[%clk 0:03:00]} 3. d4 {[%clk 0:02:59.5]} 3... exd4 {[%clk 0:02:59.4]}
4. Bc4 {[%clk 0:02:59.5]} 4... Nf6 {[%clk 0:02:59.1]} 5. e5 {[%clk 0:02:59.4]}
5... d5 {[%clk 0:02:59.2]} 6. Bb5 {[%clk 0:02:59.8]} 6... Ne4 {[%clk 0:02:59.4]}
7. Nxd4 {[%clk 0:02:59.7]} 7... Bd7 {[%clk 0:02:59.7]} 8. Bxc6 {[%clk
0:02:59.7]} 8... bxc6 {[%clk 0:02:59.9]} 9. O-O {[%clk 0:03:00.6]} 9... Bc5
{[%clk 0:02:59.6]} 10. f3 {[%clk 0:03:01]} 10... Ng5 {[%clk 0:02:59.7]} 11. f4
{[%clk 0:03:01.3]} 11... Ne4 {[%clk 0:02:59.9]} 12. Be3 {[%clk 0:03:01.2]} 12...
Bb6 {[%clk 0:02:57.1]} 13. Nd2 {[%clk 0:03:01.2]} 13... Nxd2 {[%clk 0:02:53]}
14. Qxd2 {[%clk 0:03:02.1]} 14... c5 {[%clk 0:02:53.1]} 15. Nf3 {[%clk
0:03:02.7]} 15... d4 {[%clk 0:02:49.2]} 16. Bf2 {[%clk 0:03:03.2]} 16... Bc6
{[%clk 0:02:42.2]} 17. Bh4 {[%clk 0:03:02.4]} 17... Qd5 {[%clk 0:02:34.8]} 18.
f5 {[%clk 0:03:02.1]} 18... O-O {[%clk 0:02:32.7]} 19. f6 {[%clk 0:03:00.9]}
19... Qe4 {[%clk 0:02:07.9]} 20. fxg7 {[%clk 0:02:56]} 20... Rfe8 {[%clk
0:01:57.1]} 21. Rae1 {[%clk 0:02:51.4]} 21... Qg6 {[%clk 0:01:49.6]} 22. Ng5
{[%clk 0:02:45.5]} 22... Bd5 {[%clk 0:01:01.4]} 23. Rf4 {[%clk 0:02:12.3]} 23...
c4 {[%clk 0:01:00.2]} 24. Kh1 {[%clk 0:02:10.1]} 24... h6 {[%clk 0:00:49.4]} 25.
Ne4 {[%clk 0:02:01.2]} 25... Kxg7 {[%clk 0:00:42.9]} 26. Nf6 {[%clk 0:01:55]}
26... c3 {[%clk 0:00:27]} 27. bxc3 {[%clk 0:01:48.2]} 27... Be6 {[%clk
0:00:09.2]} 28. Nxe8+ {[%clk 0:01:26.6]} 28... Rxe8 {[%clk 0:00:08.5]} 29. Bf6+
{[%clk 0:01:24.3]} 29... Kh7 {[%clk 0:00:08.4]} 30. cxd4 {[%clk 0:01:21.7]}
30... Rd8 {[%clk 0:00:08.3]} 31. c3 {[%clk 0:01:19.5]} 31... Rd7 {[%clk
0:00:06.7]} 32. Rh4 {[%clk 0:01:18.5]} 32... c5 {[%clk 0:00:06.3]} 33. Bg5
{[%clk 0:01:14.5]} 33... h5 {[%clk 0:00:05.5]} 34. Qe2 {[%clk 0:01:09.4]} 34...
cxd4 {[%clk 0:00:05]} 35. Rxh5+ {[%clk 0:01:07]} 35... Kg7 {[%clk 0:00:05.4]}
36. Bf6+ {[%clk 0:01:06.5]} 36... Qxf6 {[%clk 0:00:03.7]} 37. exf6+ {[%clk
0:01:05.4]} 37... Kxf6 {[%clk 0:00:04.6]} 38. Rh6+ {[%clk 0:01:00.3]} 38... Ke7
{[%clk 0:00:04.7]} 39. Rxe6+ {[%clk 0:00:53.6]} 39... fxe6 {[%clk 0:00:05.6]}
40. Qxe6+ {[%clk 0:00:53.7]} 40... Kd8 {[%clk 0:00:06.5]} 41. Qe8+ {[%clk
0:00:51.9]} 41... Kc7 {[%clk 0:00:06.2]} 42. Re7 {[%clk 0:00:52.5]} 42... Rxe7
{[%clk 0:00:05.6]} 43. Qxe7+ {[%clk 0:00:53.4]} 43... Kc6 {[%clk 0:00:06]} 44.
Qf6+ {[%clk 0:00:50.8]} 44... Kd5 {[%clk 0:00:05.6]} 45. cxd4 {[%clk 0:00:48.9]}
45... Bxd4 {[%clk 0:00:05.7]} 46. Qd8+ {[%clk 0:00:47.8]} 46... Ke4 {[%clk
0:00:05.7]} 47. h4 {[%clk 0:00:47.5]} 47... Bf2 {[%clk 0:00:05]} 48. h5 {[%clk
0:00:46.4]} 48... Kf5 {[%clk 0:00:05.9]} 49. Qf8+ {[%clk 0:00:44.9]} 1-0

[Event "*** Titled Tuesday Blitz"]
[Site "Chess.com"]
[Date "2020.03.03"]
[Round "5"]
[White "shanemelaughcm"]
[Black "VALPARAISO37"]
[Result "1-0"]
[WhiteElo "2292"]
[BlackElo "2401"]
[TimeControl "180+1"]
[EndTime "13:52:14 PST"]
[Termination "shanemelaughcm won by checkmate"]

1. e4 {[%clk 0:03:00.6]} 1... e5 {[%clk 0:02:59.3]} 2. Nf3 {[%clk 0:03:00.7]}
2... Nc6 {[%clk 0:02:59.4]} 3. d4 {[%clk 0:03:01]} 3... exd4 {[%clk 0:02:59.1]}
4. Bc4 {[%clk 0:03:01.8]} 4... Nf6 {[%clk 0:02:59]} 5. Ng5 {[%clk 0:03:02]} 5...
Ne5 {[%clk 0:02:58.5]} 6. Qxd4 {[%clk 0:03:02.1]} 6... Qe7 {[%clk 0:02:41.2]} 7.
Nc3 {[%clk 0:02:14.2]} 7... h6 {[%clk 0:02:36.2]} 8. Nf3 {[%clk 0:02:14.1]} 8...
Nxc4 {[%clk 0:02:29.2]} 9. Qxc4 {[%clk 0:02:14.5]} 9... Qc5 {[%clk 0:02:26.5]}
10. Qxc5 {[%clk 0:02:07.3]} 10... Bxc5 {[%clk 0:02:26]} 11. Bf4 {[%clk 0:02:08]}
11... d6 {[%clk 0:02:24.5]} 12. O-O {[%clk 0:02:07.4]} 12... a6 {[%clk
0:02:21.4]} 13. Nd5 {[%clk 0:02:06.5]} 13... Nxd5 {[%clk 0:02:17.7]} 14. exd5
{[%clk 0:02:07.4]} 14... O-O {[%clk 0:02:17.4]} 15. Rfe1 {[%clk 0:02:06.4]}
15... Bf5 {[%clk 0:02:17.2]} 16. c4 {[%clk 0:02:06.3]} 16... Rfe8 {[%clk
0:02:12.8]} 17. b3 {[%clk 0:01:49.1]} 17... b5 {[%clk 0:01:55.9]} 18. cxb5
{[%clk 0:00:44.7]} 18... axb5 {[%clk 0:01:55.6]} 19. Be3 {[%clk 0:00:44.5]}
19... Ba3 {[%clk 0:01:34.2]} 20. Nd4 {[%clk 0:00:42.4]} 20... Bd7 {[%clk
0:01:31.1]} 21. Nc2 {[%clk 0:00:27.7]} 21... Bb2 {[%clk 0:01:29.7]} 22. Rab1
{[%clk 0:00:25.4]} 22... Rxa2 {[%clk 0:01:29.5]} 23. Nb4 {[%clk 0:00:26]} 23...
Bc3 {[%clk 0:01:19.1]} 24. Nxa2 {[%clk 0:00:25.6]} 24... Bxe1 {[%clk 0:01:19.3]}
25. Rxe1 {[%clk 0:00:26.5]} 25... c5 {[%clk 0:01:13]} 26. dxc6 {[%clk
0:00:26.5]} 26... Bxc6 {[%clk 0:01:13]} 27. Rd1 {[%clk 0:00:27]} 27... Bd5
{[%clk 0:01:10.8]} 28. Rxd5 {[%clk 0:00:26.4]} 28... Ra8 {[%clk 0:01:09.9]} 29.
Rd2 {[%clk 0:00:27.1]} 29... Ra3 {[%clk 0:01:08.1]} 30. b4 {[%clk 0:00:26.7]}
30... Rb3 {[%clk 0:01:07]} 31. Kf1 {[%clk 0:00:26.5]} 31... g5 {[%clk
0:01:05.6]} 32. Ke2 {[%clk 0:00:26.7]} 32... f5 {[%clk 0:01:04.7]} 33. g3 {[%clk
0:00:26.5]} 33... Kf7 {[%clk 0:01:03.8]} 34. Rxd6 {[%clk 0:00:26.4]} 34... Rb2+
{[%clk 0:01:01.2]} 35. Rd2 {[%clk 0:00:26.3]} 35... Rb3 {[%clk 0:01:01.9]} 36.
Bc5 {[%clk 0:00:23.6]} 36... h5 {[%clk 0:01:00.7]} 37. Nc1 {[%clk 0:00:23.8]}
37... Rc3 {[%clk 0:00:59.9]} 38. Nd3 {[%clk 0:00:23.7]} 38... Ke6 {[%clk
0:00:59]} 39. f4 {[%clk 0:00:22.6]} 39... g4 {[%clk 0:00:57.7]} 40. Ne5 {[%clk
0:00:21]} 40... h4 {[%clk 0:00:57.9]} 41. Kf2 {[%clk 0:00:19.5]} 41... h3 {[%clk
0:00:56.2]} 42. Rd6+ {[%clk 0:00:20.2]} 42... Ke7 {[%clk 0:00:51.6]} 43. Rd3+
{[%clk 0:00:20.3]} 43... Ke6 {[%clk 0:00:52.1]} 44. Rxc3 {[%clk 0:00:20.7]}
44... Kd5 {[%clk 0:00:52.8]} 45. Ke3 {[%clk 0:00:20.6]} 45... Ke6 {[%clk
0:00:51.5]} 46. Rd3 {[%clk 0:00:19.5]} 46... Kf6 {[%clk 0:00:51.3]} 47. Rd6+
{[%clk 0:00:19.7]} 47... Ke7 {[%clk 0:00:51.6]} 48. Rb6+ {[%clk 0:00:19.3]}
48... Kd8 {[%clk 0:00:50.6]} 49. Kd4 {[%clk 0:00:18.3]} 49... Kc7 {[%clk
0:00:50.4]} 50. Kd5 {[%clk 0:00:17.8]} 50... Kc8 {[%clk 0:00:50.2]} 51. Kd6
{[%clk 0:00:15.1]} 51... Kd8 {[%clk 0:00:49.7]} 52. Rb8# {[%clk 0:00:15.3]} 1-0

[Event "*** Titled Tuesday Blitz"]
[Site "Chess.com"]
[Date "2020.03.03"]
[Round "5"]
[White "SARGISMV"]
[Black "Darhild"]
[Result "0-1"]
[WhiteElo "2450"]
[BlackElo "2684"]
[TimeControl "180+1"]
[EndTime "13:52:19 PST"]
[Termination "Darhild won by checkmate"]

1. Nf3 {[%clk 0:03:00.9]} 1... c5 {[%clk 0:02:58.7]} 2. c4 {[%clk 0:03:00.9]}
2... Nc6 {[%clk 0:02:57.1]} 3. Nc3 {[%clk 0:03:01.8]} 3... e5 {[%clk 0:02:55.9]}
4. g3 {[%clk 0:03:00.3]} 4... g6 {[%clk 0:02:54.7]} 5. Bg2 {[%clk 0:03:00.4]}
5... Bg7 {[%clk 0:02:55.3]} 6. O-O {[%clk 0:03:00.9]} 6... d6 {[%clk 0:02:55.2]}
7. a3 {[%clk 0:03:01.4]} 7... a5 {[%clk 0:02:53.6]} 8. Ne1 {[%clk 0:03:00.2]}
8... Be6 {[%clk 0:02:52.8]} 9. Nc2 {[%clk 0:03:00]} 9... Bxc4 {[%clk 0:02:51.6]}
10. Ne3 {[%clk 0:02:57.3]} 10... Be6 {[%clk 0:02:48.5]} 11. Ned5 {[%clk
0:02:56.5]} 11... Nge7 {[%clk 0:02:44.6]} 12. d3 {[%clk 0:02:54.1]} 12... Nxd5
{[%clk 0:02:40.6]} 13. Nxd5 {[%clk 0:02:53.6]} 13... O-O {[%clk 0:02:40.6]} 14.
h4 {[%clk 0:02:50.6]} 14... Ne7 {[%clk 0:02:33.4]} 15. Nc3 {[%clk 0:02:35.7]}
15... d5 {[%clk 0:02:33.5]} 16. Bg5 {[%clk 0:02:35.1]} 16... f6 {[%clk
0:02:33.3]} 17. Bd2 {[%clk 0:02:35.1]} 17... Rc8 {[%clk 0:02:23.9]} 18. Qa4
{[%clk 0:02:33.3]} 18... b6 {[%clk 0:02:03.9]} 19. Rfc1 {[%clk 0:02:29.8]} 19...
d4 {[%clk 0:01:55.1]} 20. Ne4 {[%clk 0:02:15.2]} 20... h6 {[%clk 0:01:54]} 21.
f4 {[%clk 0:02:07.1]} 21... f5 {[%clk 0:01:46.3]} 22. Nf2 {[%clk 0:02:06.7]}
22... exf4 {[%clk 0:01:27.9]} 23. Bxf4 {[%clk 0:01:53.8]} 23... Nd5 {[%clk
0:01:28.1]} 24. Nh3 {[%clk 0:01:44.1]} 24... Ne3 {[%clk 0:01:19.4]} 25. Bf3
{[%clk 0:01:36]} 25... Kh7 {[%clk 0:01:16.8]} 26. b4 {[%clk 0:01:33.1]} 26...
Bd7 {[%clk 0:00:59.8]} 27. Qb3 {[%clk 0:01:23.1]} 27... a4 {[%clk 0:00:57]} 28.
Qb2 {[%clk 0:01:22.2]} 28... Bc6 {[%clk 0:00:38.7]} 29. bxc5 {[%clk 0:01:10.6]}
29... Bxf3 {[%clk 0:00:37.6]} 30. exf3 {[%clk 0:01:11.5]} 30... bxc5 {[%clk
0:00:35.3]} 31. Qb7 {[%clk 0:01:07.5]} 31... Qd5 {[%clk 0:00:29.9]} 32. Rab1
{[%clk 0:00:47.9]} 32... Qa2 {[%clk 0:00:25.5]} 33. Rb2 {[%clk 0:00:25.2]} 33...
Rf7 {[%clk 0:00:23.9]} 34. Qb6 {[%clk 0:00:11.7]} 34... Qxa3 {[%clk 0:00:21.3]}
35. Rh2 {[%clk 0:00:10.9]} 35... Qxc1+ {[%clk 0:00:17.7]} 36. Kf2 {[%clk
0:00:09.9]} 36... Qf1# {[%clk 0:00:17.9]} 0-1

[Event "*** Titled Tuesday Blitz"]
[Site "Chess.com"]
[Date "2020.03.03"]
[Round "5"]
[White "ChessMavenYeti"]
[Black "ZWISCHENZUGGED"]
[Result "0-1"]
[WhiteElo "2238"]
[BlackElo "2548"]
[TimeControl "180+1"]
[EndTime "13:52:20 PST"]
[Termination "ZWISCHENZUGGED won by checkmate"]

1. d4 {[%clk 0:02:49.3]} 1... Nf6 {[%clk 0:02:55.4]} 2. Bf4 {[%clk 0:02:49.1]}
2... b6 {[%clk 0:02:54]} 3. Nc3 {[%clk 0:02:49.3]} 3... Bb7 {[%clk 0:02:48.2]}
4. Qd3 {[%clk 0:02:48.5]} 4... d5 {[%clk 0:02:44.3]} 5. Nf3 {[%clk 0:02:47.5]}
5... e6 {[%clk 0:02:39]} 6. Ne5 {[%clk 0:02:45.8]} 6... a6 {[%clk 0:02:31.4]} 7.
O-O-O {[%clk 0:02:45]} 7... Bd6 {[%clk 0:02:29.5]} 8. Qh3 {[%clk 0:02:40.6]}
8... Nbd7 {[%clk 0:02:24.2]} 9. e3 {[%clk 0:02:39.1]} 9... Qe7 {[%clk 0:02:05]}
10. f3 {[%clk 0:02:25.3]} 10... c5 {[%clk 0:01:58.5]} 11. g4 {[%clk 0:02:16.3]}
11... O-O-O {[%clk 0:01:11.1]} 12. g5 {[%clk 0:02:02.8]} 12... Ne8 {[%clk
0:01:10.2]} 13. Be2 {[%clk 0:01:37.7]} 13... Nxe5 {[%clk 0:00:58.8]} 14. dxe5
{[%clk 0:01:36.7]} 14... Bc7 {[%clk 0:00:58.1]} 15. Rhg1 {[%clk 0:01:29.7]}
15... g6 {[%clk 0:00:55.7]} 16. Qf1 {[%clk 0:01:28.6]} 16... Ng7 {[%clk
0:00:54.6]} 17. Bxa6 {[%clk 0:01:27.7]} 17... Nf5 {[%clk 0:00:49.4]} 18. Nb5
{[%clk 0:01:18.4]} 18... Bxa6 {[%clk 0:00:33.2]} 19. Nd6+ {[%clk 0:01:18.2]}
19... Bxd6 {[%clk 0:00:30.6]} 20. Qxa6+ {[%clk 0:01:17.6]} 20... Qb7 {[%clk
0:00:30.5]} 21. Qxb7+ {[%clk 0:01:16.1]} 21... Kxb7 {[%clk 0:00:31.4]} 22. exd6
{[%clk 0:01:16.4]} 22... Nxd6 {[%clk 0:00:32]} 23. e4 {[%clk 0:01:13.9]} 23...
Nc4 {[%clk 0:00:25.6]} 24. b3 {[%clk 0:01:10]} 24... Na5 {[%clk 0:00:24.6]} 25.
Be5 {[%clk 0:01:07.3]} 25... Rhe8 {[%clk 0:00:23.5]} 26. Rd2 {[%clk 0:01:01.5]}
26... Nc6 {[%clk 0:00:21.3]} 27. Bf6 {[%clk 0:01:00.8]} 27... Rd7 {[%clk
0:00:21.5]} 28. Rgd1 {[%clk 0:00:58.7]} 28... d4 {[%clk 0:00:20.6]} 29. f4
{[%clk 0:00:56.7]} 29... Na7 {[%clk 0:00:14.5]} 30. Rd3 {[%clk 0:00:57]} 30...
Kc6 {[%clk 0:00:11.1]} 31. Rh3 {[%clk 0:00:57]} 31... Nb5 {[%clk 0:00:10.5]} 32.
Rxh7 {[%clk 0:00:56]} 32... Nc3 {[%clk 0:00:10.7]} 33. Re1 {[%clk 0:00:52.1]}
33... Nxa2+ {[%clk 0:00:10.7]} 34. Kb2 {[%clk 0:00:52.5]} 34... Nb4 {[%clk
0:00:09.7]} 35. Rd1 {[%clk 0:00:44.7]} 35... Ra8 {[%clk 0:00:08.7]} 36. h4
{[%clk 0:00:43.2]} 36... Ra2+ {[%clk 0:00:06.6]} 37. Kb1 {[%clk 0:00:43.3]}
37... Rda7 {[%clk 0:00:06]} 38. Bxd4 {[%clk 0:00:33.5]} 38... cxd4 {[%clk
0:00:04.3]} 39. Rxd4 {[%clk 0:00:33.9]} 39... Ra1+ {[%clk 0:00:03.8]} 40. Kb2
{[%clk 0:00:33.9]} 40... R7a2+ {[%clk 0:00:04.3]} 41. Kc3 {[%clk 0:00:34.2]}
41... Nxc2 {[%clk 0:00:04.3]} 42. Rc4+ {[%clk 0:00:31.8]} 42... Kb5 {[%clk
0:00:04.7]} 43. Rxf7 {[%clk 0:00:31.1]} 43... Rc1 {[%clk 0:00:04.1]} 44. h5
{[%clk 0:00:27.5]} 44... Na3+ {[%clk 0:00:03.2]} 45. Kd3 {[%clk 0:00:27.1]}
45... Nxc4 {[%clk 0:00:03.5]} 46. bxc4+ {[%clk 0:00:27.2]} 46... Rxc4 {[%clk
0:00:03.6]} 47. hxg6 {[%clk 0:00:26.2]} 47... Ra3+ {[%clk 0:00:04.3]} 48. Kd2
{[%clk 0:00:26.2]} 48... Rd4+ {[%clk 0:00:03.3]} 49. Ke2 {[%clk 0:00:26.1]}
49... Rxe4+ {[%clk 0:00:03.7]} 50. Kf2 {[%clk 0:00:25.9]} 50... Rb4 {[%clk
0:00:04.1]} 51. g7 {[%clk 0:00:25.7]} 51... Rb2+ {[%clk 0:00:04.5]} 52. Kg1
{[%clk 0:00:26.1]} 52... Ra1# {[%clk 0:00:05.4]} 0-1

[Event "*** Titled Tuesday Blitz"]
[Site "Chess.com"]
[Date "2020.03.03"]
[Round "5"]
[White "adricalderon8"]
[Black "RiskyDecision"]
[Result "1/2-1/2"]
[WhiteElo "2433"]
[BlackElo "2625"]
[TimeControl "180+1"]
[EndTime "13:52:22 PST"]
[Termination "Game drawn - insufficient material"]

1. e4 {[%clk 0:03:00.9]} 1... e6 {[%clk 0:02:59.7]} 2. d4 {[%clk 0:03:00.6]}
2... d5 {[%clk 0:03:00.2]} 3. Nc3 {[%clk 0:03:01.3]} 3... Nf6 {[%clk 0:03:00.7]}
4. e5 {[%clk 0:03:00.7]} 4... Nfd7 {[%clk 0:03:01]} 5. f4 {[%clk 0:03:01.6]}
5... c5 {[%clk 0:03:01.4]} 6. Nf3 {[%clk 0:03:02.5]} 6... Be7 {[%clk 0:03:01.2]}
7. Be3 {[%clk 0:03:01.9]} 7... b6 {[%clk 0:03:01.7]} 8. Qd2 {[%clk 0:03:01.4]}
8... Nc6 {[%clk 0:03:01.8]} 9. h4 {[%clk 0:02:56]} 9... cxd4 {[%clk 0:02:57.9]}
10. Nxd4 {[%clk 0:02:55.8]} 10... Nxd4 {[%clk 0:02:57.3]} 11. Bxd4 {[%clk
0:02:55.8]} 11... Bxh4+ {[%clk 0:02:57.5]} 12. Bf2 {[%clk 0:02:55]} 12... Bxf2+
{[%clk 0:02:54.4]} 13. Qxf2 {[%clk 0:02:54.8]} 13... Bb7 {[%clk 0:02:49.9]} 14.
Nb5 {[%clk 0:02:52]} 14... O-O {[%clk 0:02:03.9]} 15. Nd6 {[%clk 0:02:50.5]}
15... Nc5 {[%clk 0:01:54.2]} 16. O-O-O {[%clk 0:02:48]} 16... Qe7 {[%clk
0:01:51]} 17. g4 {[%clk 0:02:45.5]} 17... Ne4 {[%clk 0:01:48.7]} 18. Qh2 {[%clk
0:02:42.9]} 18... h6 {[%clk 0:01:45.1]} 19. g5 {[%clk 0:02:18.1]} 19... Nxd6
{[%clk 0:01:43.9]} 20. gxh6 {[%clk 0:02:17.1]} 20... g6 {[%clk 0:01:40.5]} 21.
exd6 {[%clk 0:02:17.3]} 21... Qxd6 {[%clk 0:01:40.2]} 22. Qh4 {[%clk 0:02:17.6]}
22... Qd8 {[%clk 0:01:36.6]} 23. Qg4 {[%clk 0:02:13.3]} 23... Qf6 {[%clk
0:01:33.9]} 24. Bd3 {[%clk 0:02:12.1]} 24... Kh8 {[%clk 0:01:30.9]} 25. Rde1
{[%clk 0:01:58]} 25... a5 {[%clk 0:01:28.4]} 26. Rhg1 {[%clk 0:01:51]} 26... Ba6
{[%clk 0:01:26]} 27. Bxg6 {[%clk 0:01:43.8]} 27... fxg6 {[%clk 0:01:16.4]} 28.
Rxe6 {[%clk 0:01:42.6]} 28... Qxf4+ {[%clk 0:01:16.1]} 29. Qxf4 {[%clk
0:01:42.9]} 29... Rxf4 {[%clk 0:01:17]} 30. Rgxg6 {[%clk 0:01:40.9]} 30... Rg8
{[%clk 0:00:48.4]} 31. Rxg8+ {[%clk 0:01:39.2]} 31... Kxg8 {[%clk 0:00:49.3]}
32. Rxb6 {[%clk 0:01:39.9]} 32... Be2 {[%clk 0:00:40.9]} 33. Kd2 {[%clk
0:01:39.7]} 33... Bh5 {[%clk 0:00:34.1]} 34. Rb5 {[%clk 0:01:37.6]} 34... Rf2+
{[%clk 0:00:32.3]} 35. Kc3 {[%clk 0:01:35]} 35... Bg6 {[%clk 0:00:31.5]} 36.
Rxd5 {[%clk 0:01:31.9]} 36... Rxc2+ {[%clk 0:00:28.9]} 37. Kb3 {[%clk
0:01:32.3]} 37... a4+ {[%clk 0:00:15.7]} 38. Ka3 {[%clk 0:01:28.4]} 38... Rc4
{[%clk 0:00:13.1]} 39. b3 {[%clk 0:01:28.6]} 39... axb3 {[%clk 0:00:12.7]} 40.
axb3 {[%clk 0:01:28.7]} 40... Rh4 {[%clk 0:00:13.2]} 41. Rd6 {[%clk 0:01:28.6]}
41... Rxh6 {[%clk 0:00:12.1]} 42. b4 {[%clk 0:01:29.1]} 42... Kg7 {[%clk
0:00:12.5]} 43. Ka4 {[%clk 0:01:29.3]} 43... Rh1 {[%clk 0:00:12.1]} 44. b5
{[%clk 0:01:28.3]} 44... Ra1+ {[%clk 0:00:12.2]} 45. Kb4 {[%clk 0:01:28.7]}
45... Rb1+ {[%clk 0:00:12.8]} 46. Kc5 {[%clk 0:01:28.9]} 46... Be4 {[%clk
0:00:12.1]} 47. b6 {[%clk 0:01:28.2]} 47... Kf7 {[%clk 0:00:12.5]} 48. Rd4
{[%clk 0:01:27.1]} 48... Bh1 {[%clk 0:00:12.5]} 49. Rb4 {[%clk 0:01:24.3]} 49...
Rc1+ {[%clk 0:00:12.2]} 50. Kd6 {[%clk 0:01:24.3]} 50... Rc6+ {[%clk 0:00:12]}
51. Kd7 {[%clk 0:01:24.8]} 51... Rc1 {[%clk 0:00:08.9]} 52. b7 {[%clk
0:01:24.8]} 52... Bxb7 {[%clk 0:00:07.8]} 53. Rxb7 {[%clk 0:01:24.9]} 53... Rd1+
{[%clk 0:00:07.7]} 54. Kc6+ {[%clk 0:01:24.9]} 54... Ke6 {[%clk 0:00:07.6]} 55.
Rh7 {[%clk 0:01:22.2]} 55... Rc1+ {[%clk 0:00:07.7]} 56. Kb5 {[%clk 0:01:22.7]}
56... Rb1+ {[%clk 0:00:08.1]} 57. Kc4 {[%clk 0:01:22.9]} 57... Rc1+ {[%clk
0:00:08.5]} 58. Kd3 {[%clk 0:01:22.8]} 58... Rc6 {[%clk 0:00:08.7]} 59. Kd4
{[%clk 0:01:23.1]} 59... Rd6+ {[%clk 0:00:08.6]} 60. Ke4 {[%clk 0:01:23.5]}
60... Rc6 {[%clk 0:00:07.1]} 61. Rh6+ {[%clk 0:01:22.3]} 61... Kd7 {[%clk
0:00:07.6]} 62. Rh7+ {[%clk 0:01:22.7]} 62... Ke6 {[%clk 0:00:08.4]} 63. Rh6+
{[%clk 0:01:23.2]} 63... Kd7 {[%clk 0:00:08.8]} 64. Rxc6 {[%clk 0:01:23.9]}
64... Kxc6 {[%clk 0:00:09.7]} 1/2-1/2

[Event "*** Titled Tuesday Blitz"]
[Site "Chess.com"]
[Date "2020.03.03"]
[Round "5"]
[White "Karacsonyi_Gellert"]
[Black "GCamachoMartinez"]
[Result "0-1"]
[WhiteElo "2582"]
[BlackElo "2402"]
[TimeControl "180+1"]
[EndTime "13:52:22 PST"]
[Termination "GCamachoMartinez won by checkmate"]

1. e4 {[%clk 0:03:00.9]} 1... c5 {[%clk 0:02:59.1]} 2. Nf3 {[%clk 0:03:00]} 2...
Nc6 {[%clk 0:02:58.8]} 3. d4 {[%clk 0:02:59.8]} 3... cxd4 {[%clk 0:02:58.3]} 4.
Nxd4 {[%clk 0:03:00.7]} 4... e5 {[%clk 0:02:58.7]} 5. Nb5 {[%clk 0:02:57.4]}
5... d6 {[%clk 0:02:58.9]} 6. c4 {[%clk 0:02:54.5]} 6... Be7 {[%clk 0:02:55.8]}
7. N1c3 {[%clk 0:02:53.7]} 7... a6 {[%clk 0:02:55.9]} 8. Na3 {[%clk 0:02:53.5]}
8... Be6 {[%clk 0:02:56.8]} 9. Nd5 {[%clk 0:02:53.2]} 9... Rc8 {[%clk
0:02:51.9]} 10. Be3 {[%clk 0:02:50.2]} 10... Bg5 {[%clk 0:02:51.6]} 11. Nc2
{[%clk 0:02:47]} 11... Bxe3 {[%clk 0:02:49.8]} 12. Ncxe3 {[%clk 0:02:47.9]}
12... Bxd5 {[%clk 0:02:36.5]} 13. Nxd5 {[%clk 0:02:37.3]} 13... Nf6 {[%clk
0:02:36.3]} 14. Bd3 {[%clk 0:02:30.3]} 14... Nxd5 {[%clk 0:02:33.7]} 15. exd5
{[%clk 0:02:26.2]} 15... Nd4 {[%clk 0:02:34.6]} 16. O-O {[%clk 0:02:20.5]} 16...
O-O {[%clk 0:02:34.4]} 17. f4 {[%clk 0:02:16.3]} 17... f5 {[%clk 0:02:33.9]} 18.
fxe5 {[%clk 0:02:14]} 18... dxe5 {[%clk 0:02:34.8]} 19. Kh1 {[%clk 0:02:12.5]}
19... Qd6 {[%clk 0:02:33.9]} 20. b3 {[%clk 0:02:04.7]} 20... a5 {[%clk
0:02:32.6]} 21. Qd2 {[%clk 0:02:00.8]} 21... b6 {[%clk 0:02:32.1]} 22. Rae1
{[%clk 0:02:00.2]} 22... Rce8 {[%clk 0:02:31.9]} 23. Qg5 {[%clk 0:01:57.9]}
23... e4 {[%clk 0:02:24.1]} 24. Bb1 {[%clk 0:01:56.6]} 24... Qc5 {[%clk
0:01:38]} 25. Rd1 {[%clk 0:01:49.9]} 25... e3 {[%clk 0:01:36.1]} 26. Rfe1 {[%clk
0:01:45.6]} 26... f4 {[%clk 0:01:31]} 27. Qh5 {[%clk 0:01:40.5]} 27... g6 {[%clk
0:01:15.7]} 28. Bxg6 {[%clk 0:01:35.3]} 28... Re7 {[%clk 0:01:15.6]} 29. Bd3
{[%clk 0:01:29.6]} 29... Rg7 {[%clk 0:01:06.4]} 30. Be4 {[%clk 0:01:20.9]} 30...
Ne6 {[%clk 0:00:52.7]} 31. Qe2 {[%clk 0:00:46.4]} 31... Ng5 {[%clk 0:00:52.1]}
32. Bf3 {[%clk 0:00:46.4]} 32... Qd6 {[%clk 0:00:52]} 33. Rd4 {[%clk 0:00:43.9]}
33... Rf6 {[%clk 0:00:51.6]} 34. a3 {[%clk 0:00:37.3]} 34... Rh6 {[%clk
0:00:50.7]} 35. b4 {[%clk 0:00:31.6]} 35... axb4 {[%clk 0:00:49.8]} 36. axb4
{[%clk 0:00:31.5]} 36... Rgg6 {[%clk 0:00:49.8]} 37. c5 {[%clk 0:00:27.4]} 37...
bxc5 {[%clk 0:00:48.9]} 38. bxc5 {[%clk 0:00:28.3]} 38... Qe5 {[%clk 0:00:49.5]}
39. Qc4 {[%clk 0:00:26.4]} 39... Nxf3 {[%clk 0:00:45.7]} 40. d6+ {[%clk
0:00:25.2]} 40... Kh8 {[%clk 0:00:45.3]} 41. h3 {[%clk 0:00:18.4]} 41... Qg5
{[%clk 0:00:34.6]} 42. Qf1 {[%clk 0:00:10.9]} 42... Qg3 {[%clk 0:00:24.9]} 43.
gxf3 {[%clk 0:00:02.8]} 43... Rxh3+ {[%clk 0:00:23.8]} 44. Qxh3 {[%clk
0:00:03.7]} 44... Qxh3# {[%clk 0:00:23.8]} 0-1